bitfinex-derivatives/quotes_BTCF0:USTF0_20220102
["timestamp","ask_amount","ask_price","bid_price","bid_amount"]
[1641132971866,0.09034625,47173.0,47172.0,1.01487342]
[1641132972264,0.09034625,47173.0,47172.0,0.17619464]
[1641132973784,1.32283061,47175.0,47172.0,0.17619464]
[1641132973984,1.32283061,47175.0,47172.0,0.35619464]
[1641132974185,1.32283061,47175.0,47173.0,1.122794]
[1641132974389,1.32283061,47175.0,47174.0,1.13419217]
[1641132974585,1.32283061,47175.0,47174.0,1.27452907]
[1641132974786,1.32283061,47175.0,47174.0,2.18860449]
[1641132975287,1.32283061,47175.0,47174.0,2.18960449]
[1641132976086,1.32283061,47175.0,47174.0,2.38260449]
[1641132976286,1.32283061,47175.0,47174.0,1.78636207]
[1641132976688,1.32283061,47180.0,47174.0,1.78636207]
[1641132976890,1.32283061,47180.0,47179.0,0.155]
[1641132977888,1.44459573,47183.0,47179.0,0.155]
[1641132978089,0.176,47180.0,47179.0,0.338]
[1641132978790,0.176,47180.0,47179.0,0.47833567]
[1641132979392,1.44459573,47182.0,47179.0,0.29533567]
[1641132979591,0.09034625,47180.0,47179.0,3.64608048]
[1641132980091,0.09034625,47180.0,47179.0,3.82508048]
[1641132980292,0.182,47182.0,47179.0,3.22931716]
[1641132981394,1.44459573,47183.0,47179.0,3.05031716]
[1641132981596,1.44459573,47183.0,47182.0,0.155]
[1641132981999,1.61659573,47183.0,47182.0,0.155]
[1641132983597,0.025,47187.0,47182.0,0.155]
[1641132983999,0.185,47183.0,47182.0,0.312]
[1641132985998,0.186,47183.0,47182.0,0.311]
[1641132988001,1.63258621,47183.0,47182.0,0.319]
[1641132989304,1.44558621,47183.0,47179.0,2.89531716]
[1641132989503,1.52755621,47183.0,47179.0,2.89531716]
[1641132989704,1.52755621,47183.0,47182.0,0.155]
[1641132990105,1.70255621,47183.0,47182.0,0.155]
[1641132991003,1.70255621,47183.0,47179.0,3.06531716]
[1641132991403,1.52755621,47183.0,47179.0,2.89531716]
[1641132992007,1.52755621,47183.0,47179.0,3.04931716]
[1641132992008,0.025,47182.0,47179.0,3.04931716]
[1641132992207,0.025,47182.0,47179.0,0.29433567]
[1641132992607,1.47058621,47182.0,47179.0,0.29433567]
[1641132992806,1.47058621,47182.0,47179.0,0.154]
[1641132993207,0.025,47182.0,47179.0,0.154]
[1641132993607,0.025,47182.0,47175.0,0.59576332]
[1641132994007,0.21,47182.0,47175.0,0.59576332]
[1641132994608,0.21,47182.0,47177.0,0.155]
[1641132995209,1.32453041,47178.0,47176.0,0.155]
[1641132996008,1.50753041,47178.0,47176.0,0.326]
[1641132997209,0.183,47178.0,47176.0,0.326]
[1641132997413,0.09035658,47177.0,47176.0,0.51242072]
[1641132998109,0.26735658,47177.0,47176.0,0.69442072]
[1641132998310,0.177,47177.0,47176.0,0.69442072]
[1641132999112,0.177,47177.0,47176.0,0.53942072]
[1641132999610,0.09035658,47177.0,47176.0,0.35742072]
[1641133000213,0.173,47177.0,47176.0,0.53642072]
[1641133001511,1.44494227,47179.0,47176.0,0.35742072]
[1641133001711,0.09035658,47177.0,47176.0,0.35742072]
[1641133002313,1.63694227,47179.0,47176.0,0.35742072]
[1641133002515,1.63694227,47179.0,47178.0,0.155]
[1641133003413,1.44494227,47179.0,47178.0,0.155]
[1641133004215,1.63494227,47179.0,47178.0,0.155]
[1641133005619,1.44494227,47180.0,47178.0,0.51242072]
[1641133005816,1.44494227,47180.0,47178.0,0.35742072]
[1641133006017,1.44494227,47180.0,47179.0,0.155]
[1641133006217,1.63294227,47180.0,47178.0,0.35742072]
[1641133006418,1.70985227,47180.0,47178.0,0.35742072]
[1641133007723,1.52185227,47180.0,47177.0,0.51242072]
[1641133008119,1.70785227,47180.0,47177.0,0.51242072]
[1641133008529,1.73285227,47180.0,47177.0,0.51242072]
[1641133008830,1.44494227,47179.0,47177.0,0.35742072]
[1641133009331,0.28791,47180.0,47177.0,0.35742072]
[1641133009531,0.28791,47180.0,47175.0,0.35742072]
[1641133009532,0.07691,47180.0,47175.0,0.35742072]
[1641133009730,0.07691,47180.0,47179.0,0.155]
[1641133010131,0.26491,47180.0,47179.0,0.155]
[1641133011536,0.07691,47180.0,47179.0,0.155]
[1641133011734,1.72544104,47185.0,47179.0,0.155]
[1641133012133,0.186,47180.0,47179.0,0.155]
[1641133013035,0.186,47180.0,47179.0,0.035]
[1641133013233,0.186,47180.0,47179.0,0.155]
[1641133013633,1.72544104,47185.0,47179.0,0.155]
[1641133014033,1.70044104,47185.0,47179.0,0.155]
[1641133014233,1.88544104,47185.0,47179.0,0.155]
[1641133014938,0.35033567,47185.0,47179.0,0.155]
[1641133015540,0.16533567,47185.0,47179.0,0.155]
[1641133016040,0.16533567,47185.0,47182.0,0.155]
[1641133016237,0.16533567,47185.0,47177.0,0.35742072]
[1641133016238,0.35133567,47185.0,47177.0,0.35742072]
[1641133016637,0.35133567,47185.0,47177.0,0.51242072]
[1641133017438,0.16533567,47185.0,47177.0,0.51242072]
[1641133018145,0.09035546,47184.0,47177.0,0.51242072]
[1641133019046,0.09035546,47184.0,47177.0,0.35742072]
[1641133019244,0.09035546,47184.0,47180.0,0.155]
[1641133019444,0.09035546,47184.0,47176.0,0.35742072]
[1641133019846,0.09035546,47184.0,47180.0,0.155]
[1641133020244,0.27735546,47184.0,47180.0,0.155]
[1641133020945,0.09035546,47183.0,47180.0,0.155]
[1641133022144,0.27835546,47183.0,47180.0,0.155]
[1641133022546,0.188,47183.0,47180.0,0.155]
[1641133023550,0.09035546,47182.0,47180.0,0.155]
[1641133024148,0.25835546,47182.0,47180.0,0.155]
[1641133024751,0.168,47182.0,47180.0,0.155]
[1641133025451,0.09035546,47181.0,47180.0,0.155]
[1641133026250,0.139,47181.0,47180.0,0.155]
[1641133027250,0.22935546,47181.0,47180.0,0.155]
[1641133027451,0.09035546,47181.0,47180.0,0.155]
[1641133028052,1.44533097,47183.0,47180.0,0.155]
[1641133028254,0.14,47181.0,47180.0,0.155]
[1641133028751,0.23035546,47181.0,47180.0,0.155]
[1641133030254,0.41435546,47181.0,47180.0,0.155]
[1641133031452,0.09035546,47181.0,47180.0,0.155]
[1641133032153,0.22335546,47181.0,47180.0,0.155]
[1641133032555,0.133,47181.0,47180.0,0.155]
[1641133033155,0.22335546,47181.0,47180.0,0.155]
[1641133033555,0.09035546,47181.0,47180.0,0.155]
[1641133034860,1.44533097,47183.0,47180.0,0.155]
[1641133036160,1.62933097,47183.0,47180.0,0.155]
[1641133036763,0.184,47183.0,47180.0,0.155]
[1641133037161,0.184,47183.0,47182.0,0.155]
[1641133037465,1.53568643,47184.0,47182.0,0.155]
[1641133037663,1.44533097,47183.0,47178.0,0.35742072]
[1641133037864,1.44533097,47183.0,47179.0,0.155]
[1641133038265,1.63133097,47183.0,47179.0,0.155]
[1641133038469,1.32466634,47180.0,47179.0,0.155]
[1641133039566,1.32466634,47180.0,47176.0,0.35742072]
[1641133040166,1.50566634,47180.0,47176.0,0.35742072]
[1641133040868,1.32466634,47178.0,47176.0,0.35742072]
[1641133042269,1.50966634,47178.0,47176.0,0.35742072]
[1641133042470,1.50966634,47178.0,47175.0,0.155]
[1641133042471,1.50966634,47178.0,47175.0,0.51242072]
[1641133042770,1.50966634,47178.0,47174.0,0.59576332]
[1641133043169,1.32466634,47176.0,47174.0,0.59576332]
[1641133043371,1.32466634,47176.0,47172.0,0.59576332]
[1641133043770,0.025,47173.0,47172.0,0.59576332]
[1641133043971,0.08314,47173.0,47172.0,0.59576332]
[1641133044171,0.10434368,47173.0,47172.0,0.59576332]
[1641133044473,0.10434368,47173.0,47168.0,0.59576332]
[1641133044670,0.025,47169.0,47168.0,0.59576332]
[1641133044872,0.16533567,47169.0,47168.0,0.59576332]
[1641133045475,0.14033567,47169.0,47165.0,0.155]
[1641133046274,0.32733567,47169.0,47165.0,0.155]
[1641133046874,0.32733567,47169.0,47164.0,0.59576332]
[1641133047074,0.32733567,47169.0,47165.0,0.155]
[1641133047275,1.32507635,47168.0,47165.0,0.155]
[1641133047875,1.32507635,47167.0,47166.0,0.155]
[1641133050183,1.51307635,47167.0,47166.0,0.155]
[1641133050384,0.188,47167.0,47166.0,0.155]
[1641133050991,0.188,47167.0,47166.0,0.75076332]
[1641133051588,1.46674151,47173.0,47166.0,1.86376332]
[1641133051589,1.44553783,47173.0,47166.0,1.86376332]
[1641133051784,1.44553783,47173.0,47172.0,0.155]
[1641133052187,1.44553783,47174.0,47172.0,0.335]
[1641133052388,1.44553783,47174.0,47172.0,0.155]
[1641133052685,1.44553783,47174.0,47172.0,0.335]
[1641133052889,1.53589421,47180.0,47173.0,0.14033567]
[1641133053088,1.53589421,47180.0,47179.0,0.155]
[1641133053286,1.53589421,47180.0,47179.0,0.2153]
[1641133054189,0.14033567,47181.0,47179.0,0.4023]
[1641133054190,1.5858735,47181.0,47179.0,0.4023]
[1641133054889,1.44553783,47180.0,47179.0,0.4023]
[1641133055492,1.44553783,47180.0,47179.0,0.2153]
[1641133056298,1.44553783,47180.0,47179.0,0.4023]
[1641133056596,0.14033567,47181.0,47179.0,0.4023]
[1641133056999,0.14033567,47181.0,47179.0,0.187]
[1641133057598,0.14033567,47181.0,47179.0,0.155]
[1641133058300,0.14033567,47181.0,47179.0,0.341]
[1641133059504,0.14033567,47181.0,47179.0,0.155]
[1641133060104,0.14033567,47181.0,47173.0,0.65169561]
[1641133060303,0.14033567,47181.0,47179.0,0.186]
[1641133060804,1.58539423,47181.0,47179.0,0.186]
[1641133061604,1.44505856,47180.0,47173.0,0.14033567]
[1641133061805,1.44505856,47180.0,47177.0,0.155]
[1641133062404,1.44505856,47180.0,47179.0,0.155]
[1641133063607,1.44505856,47183.0,47179.0,0.421644]
[1641133063805,1.44505856,47183.0,47182.0,0.155]
[1641133064406,1.44505856,47187.0,47182.0,0.155]
[1641133064605,1.44505856,47187.0,47186.0,0.155]
[1641133065608,1.44505856,47188.0,47186.0,0.155]
[1641133066307,1.44505856,47188.0,47186.0,0.344]
[1641133067506,1.44505856,47188.0,47186.0,0.155]
[1641133068208,1.44505856,47188.0,47186.0,0.343]
[1641133068408,1.44505856,47189.0,47186.0,0.343]
[1641133069510,1.44505856,47189.0,47186.0,0.155]
[1641133070217,1.53540197,47188.0,47186.0,0.344]
[1641133070610,0.09034341,47187.0,47186.0,0.344]
[1641133071512,0.09034341,47188.0,47186.0,0.344]
[1641133071714,0.09034341,47188.0,47186.0,0.155]
[1641133072312,0.09034341,47188.0,47186.0,0.343]
[1641133072815,0.09034341,47188.0,47186.0,0.188]
[1641133073013,0.09034341,47188.0,47186.0,0.343]
[1641133073814,0.09034341,47188.0,47186.0,0.155]
[1641133074217,0.09034341,47188.0,47186.0,0.343]
[1641133075514,0.09034341,47188.0,47186.0,0.155]
[1641133075815,1.53540197,47188.0,47186.0,0.155]
[1641133076216,1.53540197,47188.0,47186.0,0.343]
[1641133076818,0.09034341,47187.0,47186.0,0.343]
[1641133077718,0.09034341,47187.0,47186.0,0.155]
[1641133078318,0.09034341,47187.0,47186.0,0.343]
[1641133078518,1.53540197,47188.0,47186.0,0.343]
[1641133079320,0.09034341,47188.0,47186.0,0.343]
[1641133079520,0.09034341,47187.0,47186.0,0.155]
[1641133080320,0.09034341,47188.0,47186.0,0.344]
[1641133081322,0.09034341,47188.0,47187.0,0.009794]
[1641133081721,0.09034341,47188.0,47187.0,0.327612]
[1641133081923,0.09034341,47188.0,47187.0,0.009794]
[1641133082321,1.41426956,47188.0,47187.0,0.203794]
[1641133083622,1.41426956,47190.0,47187.0,0.009794]
[1641133083821,1.41426956,47190.0,47189.0,0.155]
[1641133084220,1.41426956,47190.0,47189.0,0.348]
[1641133084421,1.32392615,47192.0,47189.0,0.348]
[1641133085520,1.32392615,47192.0,47191.0,0.14033567]
[1641133086120,1.32392615,47193.0,47191.0,0.14033567]
[1641133086320,1.32392615,47193.0,47192.0,0.155]
[1641133087721,1.32392615,47194.0,47192.0,0.155]
[1641133088421,1.32392615,47194.0,47192.0,0.34]
[1641133089322,1.32392615,47193.0,47192.0,0.34]
[1641133089724,1.32392615,47193.0,47192.0,0.155]
[1641133089923,1.32392615,47194.0,47192.0,0.155]
[1641133090424,1.32392615,47194.0,47192.0,0.343]
[1641133091726,1.32392615,47194.0,47192.0,0.155]
[1641133092425,1.32392615,47194.0,47192.0,0.341]
[1641133093127,1.32392615,47194.0,47192.0,0.186]
[1641133093728,1.32392615,47194.0,47184.0,0.14033567]
[1641133093729,1.34892615,47193.0,47190.0,0.14033567]
[1641133093942,0.04619449,47191.0,47184.0,0.14033567]
[1641133094127,0.025,47191.0,47184.0,0.14033567]
[1641133094427,0.02119449,47190.0,47184.0,0.14033567]
[1641133094833,0.025,47188.0,47184.0,0.14033567]
[1641133095632,1.32356963,47186.0,47182.0,0.155]
[1641133096431,1.32356963,47186.0,47182.0,0.343]
[1641133097633,0.025,47185.0,47182.0,0.155]
[1641133098033,0.02119677,47185.0,47182.0,0.155]
[1641133098435,0.02119677,47185.0,47182.0,0.345]
[1641133099637,0.02119677,47185.0,47182.0,0.155]
[1641133099838,1.32356963,47184.0,47182.0,0.155]
[1641133100439,1.32356963,47184.0,47182.0,0.345]
[1641133101541,1.41391157,47186.0,47182.0,0.345]
[1641133101741,1.41391157,47186.0,47179.0,0.14033567]
[1641133101942,1.41391157,47186.0,47185.0,0.155]
[1641133102343,1.32356963,47187.0,47185.0,0.155]
[1641133104343,1.32356963,47187.0,47185.0,0.338]
[1641133104543,0.09034194,47188.0,47185.0,0.338]
[1641133104753,1.5354005,47188.0,47185.0,0.338]
[1641133105154,1.5354005,47188.0,47185.0,0.183]
[1641133105755,1.5354005,47188.0,47181.0,0.51135994]
[1641133106053,1.5354005,47188.0,47181.0,0.155]
[1641133106254,1.5354005,47188.0,47181.0,0.184]
[1641133106658,0.02119631,47186.0,47181.0,0.184]
[1641133106857,1.5354005,47188.0,47184.0,0.155]
[1641133107861,0.02119631,47186.0,47184.0,0.155]
[1641133108159,0.02119631,47186.0,47180.0,0.35635994]
[1641133108361,0.02119631,47186.0,47184.0,0.335]
[1641133108759,0.09034194,47185.0,47184.0,0.335]
[1641133110264,0.09034194,47185.0,47184.0,0.516]
[1641133111466,1.44505856,47189.0,47184.0,0.516]
[1641133111666,1.44505856,47189.0,47184.0,0.0863]
[1641133111863,1.44505856,47189.0,47187.0,0.155]
[1641133112264,1.44505856,47189.0,47187.0,0.325]
[1641133113266,1.44505856,47190.0,47187.0,0.325]
[1641133113667,1.44505856,47190.0,47187.0,0.155]
[1641133114267,1.5354005,47189.0,47187.0,0.311]
[1641133115771,1.5354005,47189.0,47187.0,0.155]
[1641133116070,1.5354005,47189.0,47188.0,0.155]
[1641133116269,1.5354005,47189.0,47187.0,0.171]
[1641133116471,1.5604005,47189.0,47187.0,0.171]
[1641133116675,1.6306005,47189.0,47187.0,0.171]
[1641133117070,0.02119532,47188.0,47187.0,0.171]
[1641133117471,1.5354005,47188.0,47187.0,0.326]
[1641133117670,1.5354005,47188.0,47187.0,0.155]
[1641133118270,1.5354005,47188.0,47187.0,0.319]
[1641133118971,1.44505856,47189.0,47187.0,0.319]
[1641133119572,1.44505856,47189.0,47187.0,0.155]
[1641133120380,1.44505856,47188.0,47187.0,0.299]
[1641133120974,1.44505856,47188.0,47187.0,0.144]
[1641133121774,1.44505856,47188.0,47186.0,0.155]
[1641133122476,1.44505856,47188.0,47186.0,0.32]
[1641133123678,1.44505856,47188.0,47186.0,0.155]
[1641133124381,1.44505856,47190.0,47186.0,0.336]
[1641133124580,1.44505856,47190.0,47186.0,0.181]
[1641133124782,1.44505856,47190.0,47189.0,0.155]
[1641133124980,1.44605856,47190.0,47189.0,0.155]
[1641133125781,0.001,47190.0,47189.0,0.155]
[1641133126181,0.001,47190.0,47186.0,0.336]
[1641133126382,0.14033567,47194.0,47189.0,0.172]
[1641133126588,0.001,47190.0,47189.0,0.172]
[1641133126782,1.44558228,47190.0,47189.0,0.172]
[1641133127483,0.001,47190.0,47189.0,0.172]
[1641133128184,0.02219463,47190.0,47189.0,0.172]
[1641133130589,0.001,47190.0,47189.0,0.172]
[1641133131787,0.001,47190.0,47187.0,0.155]
[1641133131988,0.02119316,47193.0,47187.0,0.155]
[1641133132197,0.14033567,47194.0,47192.0,0.035]
[1641133132398,0.001,47193.0,47192.0,0.035]
[1641133132796,0.026,47193.0,47192.0,0.035]
[1641133132997,0.02219332,47193.0,47190.0,0.155]
[1641133133199,0.02119332,47193.0,47187.0,0.185794]
[1641133133797,0.02119332,47193.0,47190.0,0.155]
[1641133134398,0.02119332,47193.0,47190.0,0.331]
[1641133134998,0.02119332,47193.0,47190.0,0.176]
[1641133135201,0.02119332,47193.0,47192.0,0.155]
[1641133135402,0.02140529,47193.0,47192.0,0.155]
[1641133136702,0.02140529,47193.0,47187.0,0.164794]
[1641133136904,0.02119332,47193.0,47187.0,0.164794]
[1641133138002,0.02119332,47193.0,47187.0,0.155]
[1641133138202,1.44467715,47189.0,47187.0,0.155]
[1641133138407,1.44467715,47189.0,47187.0,0.278]
[1641133139005,1.44467715,47188.0,47187.0,0.278]
[1641133139606,1.44467715,47188.0,47187.0,0.155]
[1641133140207,1.44467715,47188.0,47183.0,0.155]
[1641133140409,1.46587288,47188.0,47187.0,0.177]
[1641133140608,1.46587288,47188.0,47187.0,0.332]
[1641133141010,0.11154061,47188.0,47187.0,0.332]
[1641133141207,0.09034488,47188.0,47187.0,0.332]
[1641133141608,0.09034488,47188.0,47187.0,0.155]
[1641133141908,0.09034488,47188.0,47182.0,0.14033567]
[1641133142108,0.09034488,47188.0,47185.0,0.155]
[1641133142309,0.09034488,47191.0,47185.0,0.155]
[1641133142710,0.09034488,47191.0,47182.0,0.14033567]
[1641133143011,1.4449218,47187.0,47182.0,0.14033567]
[1641133143209,1.4449218,47187.0,47186.0,0.155]
[1641133144409,1.4449218,47187.0,47186.0,0.32]
[1641133144612,0.09034488,47191.0,47186.0,0.32]
[1641133144809,0.09034488,47191.0,47189.0,0.035]
[1641133145211,0.09034488,47191.0,47189.0,0.155]
[1641133148312,0.09034488,47191.0,47189.0,0.347]
[1641133148716,0.09034488,47191.0,47190.0,0.14033567]
[1641133149114,4.488e-05,47191.0,47190.0,0.14033567]
[1641133149315,1.56010537,47196.0,47190.0,0.14033567]
[1641133149316,1.44466315,47194.0,47190.0,0.14033567]
[1641133149515,1.44466315,47194.0,47193.0,0.155]
[1641133150116,0.02,47197.0,47193.0,0.155]
[1641133150117,1.44466315,47195.0,47193.0,0.155]
[1641133150516,1.44466315,47195.0,47193.0,0.346]
[1641133151016,0.02119171,47196.0,47193.0,0.346]
[1641133151617,0.02119171,47196.0,47193.0,0.191]
[1641133151816,0.02119171,47196.0,47193.0,0.155]
[1641133152316,0.02119171,47196.0,47193.0,0.338]
[1641133153821,0.02119171,47196.0,47193.0,0.155]
[1641133154422,0.02119171,47196.0,47193.0,0.338]
[1641133154824,1.44467181,47194.0,47193.0,0.338]
[1641133155620,1.44467181,47194.0,47193.0,0.155]
[1641133156424,1.44467181,47194.0,47193.0,0.345]
[1641133158223,1.44467181,47194.0,47193.0,0.155]
[1641133158422,1.44467181,47194.0,47193.0,0.346]
[1641133159623,1.44467181,47195.0,47193.0,0.346]
[1641133159823,1.44467181,47195.0,47193.0,0.155]
[1641133160424,1.44467181,47195.0,47193.0,0.345]
[1641133160922,1.44467181,47194.0,47193.0,0.345]
[1641133161722,1.44467181,47194.0,47193.0,0.155]
[1641133162324,1.44467181,47194.0,47193.0,0.526]
[1641133162525,1.44467181,47194.0,47193.0,0.346]
[1641133163725,1.44467181,47194.0,47193.0,0.155]
[1641133164126,0.02,47197.0,47193.0,0.155]
[1641133164323,0.02,47197.0,47196.0,0.155]
[1641133165126,0.1103254,47197.0,47196.0,0.155]
[1641133166428,0.1103254,47197.0,47196.0,0.329]
[1641133167729,0.1103254,47197.0,47196.0,0.155]
[1641133168328,0.1103254,47197.0,47196.0,0.328]
[1641133169631,0.1103254,47197.0,47196.0,0.155]
[1641133170332,0.1103254,47197.0,47196.0,0.333]
[1641133171834,0.1103254,47197.0,47196.0,0.155]
[1641133172434,0.1103254,47197.0,47196.0,0.339]
[1641133173637,0.1103254,47197.0,47196.0,0.155]
[1641133174435,0.1103254,47197.0,47196.0,0.34]
[1641133175636,0.1103254,47197.0,47196.0,0.155]
[1641133176345,0.1103254,47197.0,47196.0,0.341]
[1641133177739,0.1103254,47197.0,47196.0,0.155]
[1641133178339,0.1103254,47197.0,47196.0,0.341]
[1641133179746,0.1103254,47197.0,47196.0,0.155]
[1641133180342,0.1103254,47197.0,47196.0,0.341]
[1641133181653,0.1103254,47197.0,47196.0,0.155]
[1641133182455,0.1103254,47197.0,47196.0,0.339]
[1641133184156,0.1103254,47197.0,47196.0,0.155]
[1641133184358,0.1103254,47197.0,47196.0,0.341]
[1641133185557,0.1103254,47197.0,47196.0,0.155]
[1641133185959,0.95198535,47197.0,47196.0,0.155]
[1641133186359,0.95198535,47197.0,47196.0,0.342]
[1641133187058,0.1103254,47197.0,47196.0,0.342]
[1641133187663,0.1103254,47197.0,47196.0,0.155]
[1641133188265,0.1103254,47197.0,47196.0,0.522]
[1641133189064,0.1103254,47197.0,47196.0,0.342]
[1641133189365,1.55324836,47197.0,47196.0,0.522]
[1641133189567,1.55324836,47197.0,47196.0,0.342]
[1641133189867,1.55324836,47197.0,47196.0,0.335]
[1641133190067,0.1103254,47197.0,47196.0,0.335]
[1641133190266,0.1103254,47197.0,47196.0,0.521]
[1641133190667,0.1103254,47197.0,47196.0,0.341]
[1641133190866,0.1103254,47197.0,47196.0,0.521]
[1641133191767,0.1103254,47197.0,47196.0,0.335]
[1641133192369,0.1103254,47197.0,47196.0,0.521]
[1641133193268,0.1103254,47197.0,47196.0,0.48133567]
[1641133194569,1.55324836,47197.0,47196.0,0.48133567]
[1641133195869,1.55324836,47197.0,47196.0,0.29533567]
[1641133196270,0.1103254,47197.0,47196.0,0.29533567]
[1641133196569,0.1103254,47197.0,47196.0,0.48133567]
[1641133197671,0.1103254,47197.0,47196.0,0.29533567]
[1641133197870,0.1103254,47197.0,47196.0,0.65169561]
[1641133198271,0.1103254,47197.0,47196.0,0.83769561]
[1641133198971,0.1103254,47197.0,47196.0,1.01769561]
[1641133199472,0.1103254,47197.0,47196.0,0.83769561]
[1641133199671,0.1103254,47197.0,47196.0,0.65169561]
[1641133200273,0.1103254,47197.0,47196.0,0.83869561]
[1641133201677,0.1103254,47197.0,47196.0,0.48233567]
[1641133201877,0.1103254,47197.0,47196.0,0.29533567]
[1641133202376,0.1103254,47197.0,47196.0,0.48533567]
[1641133203783,0.1103254,47197.0,47196.0,0.29533567]
[1641133204478,0.1103254,47197.0,47196.0,0.48333567]
[1641133204678,1.43425383,47197.0,47196.0,0.48333567]
[1641133205083,0.1103254,47197.0,47196.0,0.48333567]
[1641133205679,0.1103254,47197.0,47196.0,0.29533567]
[1641133206278,0.1103254,47197.0,47196.0,0.48433567]
[1641133207780,0.1103254,47197.0,47196.0,0.29533567]
[1641133208281,0.1103254,47197.0,47196.0,0.48333567]
[1641133208885,0.1680354,47197.0,47196.0,0.32833567]
[1641133209085,0.1680354,47197.0,47196.0,0.188]
[1641133209086,0.1930354,47197.0,47196.0,0.188]
[1641133209384,0.33437107,47197.0,47191.0,0.83406864]
[1641133209584,0.04719479,47192.0,47191.0,0.83406864]
[1641133210385,0.32252019,47192.0,47182.0,0.14033567]
[1641133210587,0.025,47185.0,47182.0,0.14033567]
[1641133210785,0.025,47185.0,47184.0,0.155]
[1641133211986,0.025,47185.0,47182.0,0.14033567]
[1641133212186,1.32428341,47185.0,47184.0,0.155]
[1641133212387,1.53928341,47185.0,47184.0,0.155]
[1641133212588,0.215,47185.0,47184.0,0.155]
[1641133212990,0.215,47185.0,47182.0,0.14033567]
[1641133213188,0.215,47185.0,47184.0,0.155]
[1641133213589,0.025,47185.0,47184.0,0.155]
[1641133213988,0.025,47188.0,47182.0,0.14033567]
[1641133214189,0.025,47185.0,47184.0,0.155]
[1641133214390,0.216,47185.0,47184.0,0.155]
[1641133215790,0.025,47185.0,47182.0,0.14033567]
[1641133216391,0.215,47185.0,47182.0,0.14033567]
[1641133216791,0.215,47185.0,47184.0,0.155]
[1641133217693,0.025,47185.0,47184.0,0.155]
[1641133218394,0.215,47185.0,47184.0,0.155]
[1641133218595,0.215,47185.0,47182.0,0.14033567]
[1641133218994,0.19,47185.0,47184.0,0.155]
[1641133219194,0.215,47185.0,47184.0,0.155]
[1641133219395,0.19,47185.0,47184.0,0.155]
[1641133219794,0.025,47185.0,47182.0,0.14033567]
[1641133219994,0.025,47185.0,47184.0,0.155]
[1641133220293,0.216,47185.0,47184.0,0.155]
[1641133220495,0.191,47185.0,47182.0,0.14033567]
[1641133220695,0.191,47185.0,47184.0,0.155]
[1641133221303,0.216,47185.0,47184.0,0.155]
[1641133221498,0.79219935,47185.0,47184.0,0.155]
[1641133221695,0.60119935,47185.0,47184.0,0.155]
[1641133222296,0.187,47185.0,47184.0,0.155]
[1641133222796,0.187,47185.0,47182.0,0.14033567]
[1641133223100,0.7881972,47185.0,47184.0,0.155]
[1641133223599,0.6011972,47185.0,47184.0,0.155]
[1641133224296,0.7881972,47185.0,47184.0,0.155]
[1641133224497,0.187,47185.0,47184.0,0.155]
[1641133225497,0.78820796,47185.0,47184.0,0.155]
[1641133225702,0.60120796,47185.0,47184.0,0.155]
[1641133226298,0.78720796,47185.0,47184.0,0.155]
[1641133227100,0.186,47185.0,47184.0,0.155]
[1641133227300,0.186,47185.0,47182.0,0.14033567]
[1641133227499,0.186,47185.0,47184.0,0.155]
[1641133227698,0.025,47187.0,47184.0,0.155]
[1641133228399,0.211,47187.0,47184.0,0.155]
[1641133228598,0.211,47187.0,47182.0,0.14033567]
[1641133228801,0.09273917,47186.0,47182.0,0.14033567]
[1641133229000,0.09273917,47186.0,47184.0,0.155]
[1641133229199,0.09273917,47186.0,47182.0,0.14033567]
[1641133229399,0.09273917,47186.0,47184.0,0.155]
[1641133230202,0.09273917,47186.0,47182.0,0.14033567]
[1641133230401,0.27873917,47186.0,47182.0,0.14033567]
[1641133230601,0.27873917,47186.0,47184.0,0.155]
[1641133231902,0.186,47186.0,47184.0,0.155]
[1641133232301,0.187,47186.0,47184.0,0.155]
[1641133233804,0.84167078,47187.0,47184.0,0.155]
[1641133234404,1.39236572,47187.0,47184.0,0.155]
[1641133234604,0.55069494,47187.0,47184.0,0.155]
[1641133235406,0.36069494,47185.0,47184.0,0.155]
[1641133236317,0.55569494,47185.0,47184.0,0.155]
[1641133237119,0.195,47185.0,47184.0,0.155]
[1641133237618,0.84167078,47186.0,47184.0,0.155]
[1641133238422,1.03467078,47186.0,47184.0,0.155]
[1641133239721,0.9342234,47185.0,47184.0,0.155]
[1641133240421,1.1252234,47185.0,47184.0,0.155]
[1641133241226,1.03267078,47185.0,47184.0,0.155]
[1641133241922,0.84167078,47185.0,47184.0,0.155]
[1641133242322,1.03067078,47185.0,47184.0,0.155]
[1641133242723,0.28155262,47185.0,47184.0,0.155]
[1641133243928,0.09255262,47185.0,47184.0,0.155]
[1641133244425,0.28155262,47185.0,47184.0,0.155]
[1641133245625,0.09255262,47185.0,47184.0,0.155]
[1641133246031,0.09255262,47185.0,47182.0,0.14033567]
[1641133246430,0.189,47185.0,47182.0,0.14033567]
[1641133247828,0.189,47185.0,47184.0,0.155]
[1641133248433,0.188,47185.0,47184.0,0.155]
[1641133248931,0.188,47185.0,47182.0,0.14033567]
[1641133249732,1.44467281,47187.0,47182.0,0.14033567]
[1641133249933,1.32458878,47183.0,47182.0,0.14033567]
[1641133250535,1.51358878,47183.0,47182.0,0.14033567]
[1641133251637,1.32458878,47185.0,47182.0,0.14033567]
[1641133252036,1.32458878,47185.0,47182.0,0.29533567]
[1641133252436,1.51258878,47185.0,47182.0,0.29533567]
[1641133252636,1.51258878,47185.0,47183.0,0.36002533]
[1641133253237,1.51258878,47185.0,47182.0,0.655361]
[1641133253839,1.32458878,47185.0,47182.0,0.655361]
[1641133254438,1.51258878,47185.0,47182.0,0.655361]